[Event "Titled Tuesday Blitz July 18 Late 2023"]
[White "Zhigalko, Sergei"]
[Black "Svane, Frederik"]
[WhiteFideId "13502956"]
[BlackFideId "12923044"]
[WhiteElo "2896"]
[BlackElo "2978"]
[Result "1/2-1/2"]
[Round "5"]
[TimeControl "180+2"]
[Date "2023.07.18"]
[WhiteClock "0:00:01"]
[BlackClock "0:00:06"]
[Board "7"]

1. e4 {[%clk 0:03:00]}  c5 {[%clk 0:02:59]} 2. Nf3 {[%clk 0:03:01]}  d6 {[%clk 0:02:58]} 3. d4 {[%clk 0:03:01]}  cxd4 {[%clk 0:02:57]} 4. Qxd4 {[%clk 0:03:01]}  Nc6 {[%clk 0:02:55]} 5. Bb5 {[%clk 0:03:01]}  Bd7 {[%clk 0:02:52]} 6. Bxc6 {[%clk 0:03:01]}  Bxc6 {[%clk 0:02:52]} 7. Nc3 {[%clk 0:03:02]}  Nf6 {[%clk 0:02:49]} 8. Bg5 {[%clk 0:03:02]}  e6 {[%clk 0:02:50]} 9. O-O-O {[%clk 0:03:02]}  Be7 {[%clk 0:02:49]} 10. Rhe1 {[%clk 0:03:02]}  O-O {[%clk 0:02:45]} 11. Kb1 {[%clk 0:03:02]}  Qa5 {[%clk 0:02:37]} 12. Qd2 {[%clk 0:03:03]}  Qa6 {[%clk 0:01:38]} 13. Nd4 {[%clk 0:03:03]}  b5 {[%clk 0:01:32]} 14. f3 {[%clk 0:03:02]}  b4 {[%clk 0:01:31]} 15. Nce2 {[%clk 0:03:03]}  Rab8 {[%clk 0:01:28]} 16. g4 {[%clk 0:03:03]}  Rfc8 {[%clk 0:01:24]} 17. Ng3 {[%clk 0:03:03]}  Ba4 {[%clk 0:01:23]} 18. b3 {[%clk 0:02:02]}  Rc5 {[%clk 0:01:08]} 19. bxa4 {[%clk 0:01:54]}  Qxa4 {[%clk 0:01:06]} 20. Nb3 {[%clk 0:01:50]}  Rxg5 {[%clk 0:00:44]} 21. Qxg5 {[%clk 0:01:48]}  Nd5 {[%clk 0:00:34]} 22. Rxd5 {[%clk 0:01:31]}  Bxg5 {[%clk 0:00:34]} 23. Rxg5 {[%clk 0:01:32]}  e5 {[%clk 0:00:26]} 24. Rh5 {[%clk 0:00:41]}  a5 {[%clk 0:00:20]} 25. Rd1 {[%clk 0:00:30]}  Qb5 {[%clk 0:00:11]} 26. Rh3 {[%clk 0:00:09]}  a4 {[%clk 0:00:12]} 27. Nc1 {[%clk 0:00:10]}  Qc5 {[%clk 0:00:11]} 28. Nge2 {[%clk 0:00:09]}  g6 {[%clk 0:00:08]} 29. f4 {[%clk 0:00:09]}  exf4 {[%clk 0:00:08]} 30. Nxf4 {[%clk 0:00:08]}  Qe5 {[%clk 0:00:08]} 31. Ncd3 {[%clk 0:00:03]}  Qxe4 {[%clk 0:00:08]} 32. Re1 {[%clk 0:00:04]}  Qc4 {[%clk 0:00:08]} 33. Rhe3 {[%clk 0:00:01]}  b3 {[%clk 0:00:08]} 34. axb3 {[%clk 0:00:02]}  axb3 {[%clk 0:00:08]} 35. Re8+ {[%clk 0:00:02]}  Rxe8 {[%clk 0:00:08]} 36. Rxe8+ {[%clk 0:00:03]}  Kg7 {[%clk 0:00:09]} 37. cxb3 {[%clk 0:00:03]}  Qxb3+ {[%clk 0:00:10]} 38. Kc1 {[%clk 0:00:04]}  Qa2 {[%clk 0:00:10]} 39. Re2 {[%clk 0:00:03]}  Qa1+ {[%clk 0:00:10]} 40. Kd2 {[%clk 0:00:03]}  Qd4 {[%clk 0:00:10]} 41. h3 {[%clk 0:00:02]}  d5 {[%clk 0:00:10]} 42. Re7 {[%clk 0:00:02]}  Qg1 {[%clk 0:00:09]} 43. Re2 {[%clk 0:00:01]}  Qd4 {[%clk 0:00:08]} 44. Re3 {[%clk 0:00:01]}  Kf6 {[%clk 0:00:08]} 45. Re2 {[%clk 0:00:01]}  Kg5 {[%clk 0:00:08]} 46. Re3 {[%clk 0:00:01]}  Kh6 {[%clk 0:00:05]} 47. Re2 {[%clk 0:00:01]}  Kg7 {[%clk 0:00:06]} 1/2-1/2


[Site "https://www.chess.com"]

[Event "Titled Tuesday Blitz July 18 Late 2023"]
[White "Anton Guijarro, David"]
[Black "Naroditsky, Daniel"]
[WhiteFideId "2285525"]
[BlackFideId "2026961"]
[WhiteElo "2932"]
[BlackElo "3134"]
[Result "0-1"]
[Round "5"]
[TimeControl "180+2"]
[Date "2023.07.18"]
[WhiteClock "0:00:01"]
[BlackClock "0:00:29"]
[Board "8"]

1. d4 {[%clk 0:03:00]}  Nf6 {[%clk 0:03:00]} 2. c3 {[%clk 0:03:01]}  g6 {[%clk 0:02:58]} 3. Bg5 {[%clk 0:03:01]}  Bg7 {[%clk 0:02:57]} 4. Nd2 {[%clk 0:03:02]}  O-O {[%clk 0:02:57]} 5. e3 {[%clk 0:03:02]}  d6 {[%clk 0:02:54]} 6. Ngf3 {[%clk 0:03:02]}  b6 {[%clk 0:02:51]} 7. a4 {[%clk 0:02:59]}  a5 {[%clk 0:02:50]} 8. Bd3 {[%clk 0:02:56]}  Bb7 {[%clk 0:02:49]} 9. O-O {[%clk 0:02:56]}  Nbd7 {[%clk 0:02:49]} 10. e4 {[%clk 0:02:55]}  e5 {[%clk 0:02:49]} 11. Re1 {[%clk 0:02:55]}  Re8 {[%clk 0:02:48]} 12. Qc2 {[%clk 0:02:50]}  h6 {[%clk 0:02:47]} 13. Bh4 {[%clk 0:02:47]}  g5 {[%clk 0:02:43]} 14. Bg3 {[%clk 0:02:46]}  Nh5 {[%clk 0:02:44]} 15. dxe5 {[%clk 0:02:12]}  Nxg3 {[%clk 0:02:23]} 16. hxg3 {[%clk 0:02:11]}  Nxe5 {[%clk 0:02:24]} 17. Bb5 {[%clk 0:02:05]}  Nxf3+ {[%clk 0:02:18]} 18. gxf3 {[%clk 0:01:55]}  Re7 {[%clk 0:01:57]} 19. Nf1 {[%clk 0:01:55]}  d5 {[%clk 0:01:51]} 20. Rad1 {[%clk 0:01:40]}  c6 {[%clk 0:01:51]} 21. Bd3 {[%clk 0:01:29]}  Qc7 {[%clk 0:01:49]} 22. Ne3 {[%clk 0:01:28]}  Rae8 {[%clk 0:01:45]} 23. exd5 {[%clk 0:01:27]}  cxd5 {[%clk 0:01:43]} 24. Bb5 {[%clk 0:01:25]}  d4 {[%clk 0:01:26]} 25. cxd4 {[%clk 0:00:40]}  Qxc2 {[%clk 0:01:27]} 26. Nxc2 {[%clk 0:00:40]}  Rxe1+ {[%clk 0:01:27]} 27. Nxe1 {[%clk 0:00:41]}  Rd8 {[%clk 0:01:26]} 28. b3 {[%clk 0:00:24]}  Rxd4 {[%clk 0:01:17]} 29. Rxd4 {[%clk 0:00:24]}  Bxd4 {[%clk 0:01:18]} 30. Bc4 {[%clk 0:00:25]}  Bc3 {[%clk 0:01:12]} 31. Kf1 {[%clk 0:00:25]}  Bxe1 {[%clk 0:01:08]} 32. Kxe1 {[%clk 0:00:25]}  Bxf3 {[%clk 0:01:09]} 33. Kd2 {[%clk 0:00:25]}  Kg7 {[%clk 0:01:06]} 34. Ke3 {[%clk 0:00:25]}  Bc6 {[%clk 0:01:04]} 35. g4 {[%clk 0:00:20]}  Bd7 {[%clk 0:00:58]} 36. f3 {[%clk 0:00:16]}  f5 {[%clk 0:00:59]} 37. Be2 {[%clk 0:00:11]}  Be6 {[%clk 0:00:58]} 38. Bd1 {[%clk 0:00:11]}  Kf7 {[%clk 0:00:44]} 39. Kd4 {[%clk 0:00:11]}  Kf6 {[%clk 0:00:44]} 40. Kd3 {[%clk 0:00:02]}  Ke5 {[%clk 0:00:43]} 41. Ke3 {[%clk 0:00:02]}  Bd5 {[%clk 0:00:35]} 42. Bc2 {[%clk 0:00:01]}  f4+ {[%clk 0:00:29]} 0-1


[Site "https://www.chess.com"]

[Event "Titled Tuesday Blitz July 18 Late 2023"]
[White "Bartel, Mateusz"]
[Black "Nihal Sarin"]
[WhiteFideId "1112635"]
[BlackFideId "25092340"]
[WhiteElo "2846"]
[BlackElo "3058"]
[Result "0-1"]
[Round "5"]
[TimeControl "180+2"]
[Date "2023.07.18"]
[WhiteClock "0:00:00"]
[BlackClock "0:00:03"]
[Board "10"]

1. e4 {[%clk 0:03:00]}  a6 {[%clk 0:02:58]} 2. d4 {[%clk 0:03:00]}  c6 {[%clk 0:02:58]} 3. Nf3 {[%clk 0:02:47]}  d5 {[%clk 0:02:58]} 4. Nc3 {[%clk 0:02:45]}  Bg4 {[%clk 0:02:58]} 5. h3 {[%clk 0:02:42]}  Bh5 {[%clk 0:02:53]} 6. g4 {[%clk 0:02:39]}  Bg6 {[%clk 0:02:53]} 7. Ne5 {[%clk 0:02:34]}  e6 {[%clk 0:02:47]} 8. Nxg6 {[%clk 0:02:31]}  hxg6 {[%clk 0:02:47]} 9. Bg2 {[%clk 0:02:32]}  dxe4 {[%clk 0:02:33]} 10. Nxe4 {[%clk 0:02:31]}  Nf6 {[%clk 0:02:34]} 11. Ng5 {[%clk 0:02:29]}  Nbd7 {[%clk 0:02:33]} 12. Qe2 {[%clk 0:02:26]}  Bd6 {[%clk 0:02:29]} 13. Bd2 {[%clk 0:02:19]}  Nd5 {[%clk 0:02:23]} 14. Qf3 {[%clk 0:02:03]}  Qe7 {[%clk 0:02:04]} 15. O-O-O {[%clk 0:02:01]}  N5f6 {[%clk 0:01:56]} 16. Rhe1 {[%clk 0:01:58]}  O-O-O {[%clk 0:01:56]} 17. Qb3 {[%clk 0:01:43]}  Nd5 {[%clk 0:01:55]} 18. Qf3 {[%clk 0:01:23]}  N5f6 {[%clk 0:01:52]} 19. Kb1 {[%clk 0:01:20]}  Rhf8 {[%clk 0:01:47]} 20. a3 {[%clk 0:01:19]}  Nb6 {[%clk 0:01:42]} 21. Qb3 {[%clk 0:01:16]}  Nbd5 {[%clk 0:01:42]} 22. c4 {[%clk 0:01:13]}  Nf4 {[%clk 0:01:42]} 23. Bf3 {[%clk 0:01:06]}  Rh8 {[%clk 0:01:03]} 24. Rh1 {[%clk 0:00:33]}  Nxg4 {[%clk 0:00:57]} 25. Nxf7 {[%clk 0:00:24]}  Nxf2 {[%clk 0:00:47]} 26. Nxh8 {[%clk 0:00:24]}  Rxh8 {[%clk 0:00:48]} 27. Bg4 {[%clk 0:00:23]}  Nxh1 {[%clk 0:00:38]} 28. Rxh1 {[%clk 0:00:23]}  Kb8 {[%clk 0:00:39]} 29. Re1 {[%clk 0:00:23]}  Qh4 {[%clk 0:00:29]} 30. Ka2 {[%clk 0:00:11]}  Qf2 {[%clk 0:00:23]} 31. Qe3 {[%clk 0:00:10]}  Qh2 {[%clk 0:00:18]} 32. Bc3 {[%clk 0:00:09]}  Ng2 {[%clk 0:00:18]} 33. Qxe6 {[%clk 0:00:07]}  Nxe1 {[%clk 0:00:18]} 34. Qxe1 {[%clk 0:00:08]}  Qf4 {[%clk 0:00:16]} 35. Qe6 {[%clk 0:00:08]}  Qf6 {[%clk 0:00:16]} 36. Qe4 {[%clk 0:00:08]}  Qf7 {[%clk 0:00:17]} 37. Qd3 {[%clk 0:00:06]}  Re8 {[%clk 0:00:15]} 38. d5 {[%clk 0:00:06]}  cxd5 {[%clk 0:00:16]} 39. cxd5 {[%clk 0:00:06]}  Be5 {[%clk 0:00:16]} 40. Be6 {[%clk 0:00:07]}  Qf6 {[%clk 0:00:15]} 41. Ba5 {[%clk 0:00:06]}  Rxe6 {[%clk 0:00:07]} 42. dxe6 {[%clk 0:00:06]}  Qxe6+ {[%clk 0:00:08]} 43. Qb3 {[%clk 0:00:07]}  Qc6 {[%clk 0:00:02]} 44. Qd3 {[%clk 0:00:07]}  Qe6+ {[%clk 0:00:02]} 45. Qb3 {[%clk 0:00:06]}  Qc6 {[%clk 0:00:02]} 46. Qg8+ {[%clk 0:00:06]}  Ka7 {[%clk 0:00:02]} 47. Qb3 {[%clk 0:00:07]}  b6 {[%clk 0:00:01]} 48. Bd2 {[%clk 0:00:07]}  Kb7 {[%clk 0:00:02]} 49. Qf7+ {[%clk 0:00:07]}  Kc8 {[%clk 0:00:02]} 50. Qf8+ {[%clk 0:00:07]}  Kd7 {[%clk 0:00:02]} 51. Qf7+ {[%clk 0:00:08]}  Kd8 {[%clk 0:00:03]} 52. Qf8+ {[%clk 0:00:08]}  Qe8 {[%clk 0:00:03]} 53. Bg5+ {[%clk 0:00:08]}  Kd7 {[%clk 0:00:03]} 54. Qf3 {[%clk 0:00:08]}  Qe6+ {[%clk 0:00:04]} 55. Kb1 {[%clk 0:00:08]}  Qf5+ {[%clk 0:00:04]} 56. Qxf5+ {[%clk 0:00:08]}  gxf5 {[%clk 0:00:05]} 57. Kc2 {[%clk 0:00:09]}  Ke6 {[%clk 0:00:05]} 58. b3 {[%clk 0:00:09]}  Kd5 {[%clk 0:00:05]} 59. Kd3 {[%clk 0:00:09]}  b5 {[%clk 0:00:05]} 60. Bd8 {[%clk 0:00:08]}  Bd6 {[%clk 0:00:03]} 61. a4 {[%clk 0:00:08]}  bxa4 {[%clk 0:00:04]} 62. bxa4 {[%clk 0:00:08]}  f4 {[%clk 0:00:03]} 63. Bg5 {[%clk 0:00:08]}  Ke5 {[%clk 0:00:04]} 64. Bh4 {[%clk 0:00:06]}  Bc5 {[%clk 0:00:04]} 65. Bd8 {[%clk 0:00:06]}  f3 {[%clk 0:00:03]} 66. Ba5 {[%clk 0:00:05]}  Kf4 {[%clk 0:00:03]} 67. Bc7+ {[%clk 0:00:06]}  Kg5 {[%clk 0:00:02]} 68. Bg3 {[%clk 0:00:05]}  Kf5 {[%clk 0:00:03]} 69. Bc7 {[%clk 0:00:04]}  g5 {[%clk 0:00:02]} 70. Bb8 {[%clk 0:00:04]}  g4 {[%clk 0:00:02]} 71. hxg4+ {[%clk 0:00:04]}  Kxg4 {[%clk 0:00:03]} 72. Bc7 {[%clk 0:00:00]}  Kh3 {[%clk 0:00:03]} 0-1


[Site "https://www.chess.com"]

[Event "Titled Tuesday Blitz July 18 Late 2023"]
[White "Kramnik, Vladimir"]
[Black "Meshkovs, Nikita"]
[WhiteFideId "4101588"]
[BlackFideId "11602740"]
[WhiteElo "2980"]
[BlackElo "2746"]
[Result "0-1"]
[Round "5"]
[TimeControl "180+2"]
[Date "2023.07.18"]
[WhiteClock "0:00:04"]
[BlackClock "0:00:04"]
[Board "14"]

1. e4 {[%clk 0:03:00]}  c5 {[%clk 0:02:55]} 2. Nf3 {[%clk 0:03:01]}  Nc6 {[%clk 0:02:55]} 3. c3 {[%clk 0:03:00]}  Nf6 {[%clk 0:02:55]} 4. e5 {[%clk 0:03:00]}  Nd5 {[%clk 0:02:55]} 5. Bc4 {[%clk 0:03:00]}  Nb6 {[%clk 0:02:55]} 6. Bb3 {[%clk 0:03:00]}  c4 {[%clk 0:02:55]} 7. Bc2 {[%clk 0:03:00]}  d5 {[%clk 0:02:49]} 8. exd6 {[%clk 0:02:59]}  Qxd6 {[%clk 0:02:41]} 9. O-O {[%clk 0:03:00]}  Bg4 {[%clk 0:02:39]} 10. a4 {[%clk 0:02:48]}  Ne5 {[%clk 0:02:33]} 11. Be4 {[%clk 0:02:47]}  O-O-O {[%clk 0:02:23]} 12. a5 {[%clk 0:02:43]}  Nd5 {[%clk 0:02:21]} 13. Na3 {[%clk 0:02:32]}  f5 {[%clk 0:01:52]} 14. Nxe5 {[%clk 0:02:10]}  Bxd1 {[%clk 0:01:42]} 15. Nexc4 {[%clk 0:02:01]}  Qe6 {[%clk 0:01:29]} 16. Bxd5 {[%clk 0:02:01]}  Rxd5 {[%clk 0:01:28]} 17. Rxd1 {[%clk 0:02:00]}  Qe2 {[%clk 0:01:27]} 18. Rf1 {[%clk 0:01:56]}  e5 {[%clk 0:01:04]} 19. Ne3 {[%clk 0:01:48]}  Rd3 {[%clk 0:00:58]} 20. Nxf5 {[%clk 0:01:35]}  Bc5 {[%clk 0:00:58]} 21. Ne3 {[%clk 0:01:21]}  Rf8 {[%clk 0:00:50]} 22. Nac4 {[%clk 0:01:20]}  Rf4 {[%clk 0:00:29]} 23. b3 {[%clk 0:00:56]}  Bxe3 {[%clk 0:00:18]} 24. Nxe3 {[%clk 0:00:51]}  h5 {[%clk 0:00:17]} 25. c4 {[%clk 0:00:41]}  h4 {[%clk 0:00:17]} 26. h3 {[%clk 0:00:40]}  g5 {[%clk 0:00:15]} 27. Bb2 {[%clk 0:00:23]}  Rxd2 {[%clk 0:00:14]} 28. Rae1 {[%clk 0:00:22]}  Rxb2 {[%clk 0:00:12]} 29. Rxe2 {[%clk 0:00:22]}  Rxe2 {[%clk 0:00:13]} 30. Nd5 {[%clk 0:00:18]}  Rd4 {[%clk 0:00:13]} 31. Nc3 {[%clk 0:00:19]}  Rb2 {[%clk 0:00:10]} 32. Nb5 {[%clk 0:00:17]}  Rdd2 {[%clk 0:00:10]} 33. Nxa7+ {[%clk 0:00:17]}  Kd7 {[%clk 0:00:11]} 34. Nb5 {[%clk 0:00:16]}  Rxb3 {[%clk 0:00:11]} 35. Re1 {[%clk 0:00:15]}  Rbb2 {[%clk 0:00:06]} 36. Rxe5 {[%clk 0:00:14]}  Rd1+ {[%clk 0:00:06]} 37. Kh2 {[%clk 0:00:14]}  Rxf2 {[%clk 0:00:05]} 38. Nc3 {[%clk 0:00:13]}  Ra1 {[%clk 0:00:04]} 39. Rd5+ {[%clk 0:00:08]}  Kc8 {[%clk 0:00:03]} 40. Rc5+ {[%clk 0:00:08]}  Kb8 {[%clk 0:00:04]} 41. Rxg5 {[%clk 0:00:05]}  Rff1 {[%clk 0:00:04]} 42. g3 {[%clk 0:00:04]}  Rf2# {[%clk 0:00:04]} 0-1


[Site "https://www.chess.com"]

[Event "Titled Tuesday Blitz July 18 Late 2023"]
[White "Haydon, David L"]
[Black "Xiong, Jeffery"]
[WhiteFideId "415405"]
[BlackFideId "2047640"]
[WhiteElo "2709"]
[BlackElo "2965"]
[Result "0-1"]
[Round "5"]
[TimeControl "180+2"]
[Date "2023.07.18"]
[WhiteClock "0:00:00"]
[BlackClock "0:01:43"]
[Board "15"]

1. d4 {[%clk 0:03:00]}  Nf6 {[%clk 0:03:00]} 2. Nf3 {[%clk 0:03:01]}  g6 {[%clk 0:02:56]} 3. g3 {[%clk 0:03:00]}  Bg7 {[%clk 0:02:56]} 4. Bg2 {[%clk 0:03:00]}  c5 {[%clk 0:02:56]} 5. c3 {[%clk 0:02:59]}  b6 {[%clk 0:02:50]} 6. Ne5 {[%clk 0:02:58]}  d5 {[%clk 0:02:50]} 7. O-O {[%clk 0:02:57]}  O-O {[%clk 0:02:50]} 8. Nd2 {[%clk 0:02:57]}  Bb7 {[%clk 0:02:47]} 9. Ndf3 {[%clk 0:02:56]}  Ne4 {[%clk 0:02:45]} 10. Bf4 {[%clk 0:02:55]}  f6 {[%clk 0:02:44]} 11. Nd3 {[%clk 0:02:54]}  Nd7 {[%clk 0:02:43]} 12. Nd2 {[%clk 0:02:49]}  e5 {[%clk 0:02:39]} 13. dxe5 {[%clk 0:02:49]}  fxe5 {[%clk 0:02:39]} 14. Nxe4 {[%clk 0:02:42]}  dxe4 {[%clk 0:02:37]} 15. Be3 {[%clk 0:02:37]}  Qc7 {[%clk 0:02:33]} 16. Nc1 {[%clk 0:02:22]}  c4 {[%clk 0:02:27]} 17. Qc2 {[%clk 0:02:18]}  Nf6 {[%clk 0:02:26]} 18. Bg5 {[%clk 0:02:15]}  Qc6 {[%clk 0:02:03]} 19. Bxf6 {[%clk 0:02:12]}  Rxf6 {[%clk 0:01:58]} 20. a4 {[%clk 0:02:13]}  Raf8 {[%clk 0:01:56]} 21. a5 {[%clk 0:02:07]}  Rxf2 {[%clk 0:01:47]} 22. Rxf2 {[%clk 0:02:06]}  Rxf2 {[%clk 0:01:48]} 23. Bxe4 {[%clk 0:01:47]}  Qc5 {[%clk 0:01:41]} 24. Kh1 {[%clk 0:01:33]}  Rf1+ {[%clk 0:01:41]} 25. Kg2 {[%clk 0:01:33]}  Qg1+ {[%clk 0:01:42]} 26. Kh3 {[%clk 0:00:00]}  Bc8+ {[%clk 0:01:43]} 0-1


[Site "https://www.chess.com"]

[Event "Titled Tuesday Blitz July 18 Late 2023"]
[White "Dimitrov, Atanas"]
[Black "Durarbayli, Vasif"]
[WhiteFideId "2901315"]
[BlackFideId "13402935"]
[WhiteElo "2706"]
[BlackElo "2923"]
[Result "0-1"]
[Round "5"]
[TimeControl "180+2"]
[Date "2023.07.18"]
[WhiteClock "0:00:00"]
[BlackClock "0:00:45"]
[Board "16"]

1. Nf3 {[%clk 0:03:00]}  c5 {[%clk 0:02:57]} 2. c4 {[%clk 0:03:00]}  Nc6 {[%clk 0:02:56]} 3. g3 {[%clk 0:03:00]}  g6 {[%clk 0:02:57]} 4. Bg2 {[%clk 0:03:00]}  Bg7 {[%clk 0:02:57]} 5. O-O {[%clk 0:03:01]}  e6 {[%clk 0:02:57]} 6. Nc3 {[%clk 0:03:01]}  Nge7 {[%clk 0:02:58]} 7. b3 {[%clk 0:02:59]}  O-O {[%clk 0:02:57]} 8. Bb2 {[%clk 0:02:59]}  d5 {[%clk 0:02:58]} 9. cxd5 {[%clk 0:02:59]}  exd5 {[%clk 0:02:58]} 10. Rc1 {[%clk 0:03:00]}  b6 {[%clk 0:02:58]} 11. Na4 {[%clk 0:02:47]}  d4 {[%clk 0:02:56]} 12. e3 {[%clk 0:02:43]}  Ba6 {[%clk 0:02:47]} 13. Re1 {[%clk 0:02:39]}  Nb4 {[%clk 0:02:35]} 14. exd4 {[%clk 0:02:09]}  Nd3 {[%clk 0:02:35]} 15. Ne5 {[%clk 0:02:03]}  Nxc1 {[%clk 0:02:13]} 16. Bxa8 {[%clk 0:01:52]}  Qxa8 {[%clk 0:02:10]} 17. Qxc1 {[%clk 0:01:44]}  Qd5 {[%clk 0:01:54]} 18. Nc3 {[%clk 0:01:08]}  Qxd4 {[%clk 0:01:53]} 19. Nf3 {[%clk 0:01:05]}  Qd7 {[%clk 0:01:46]} 20. Ne4 {[%clk 0:01:04]}  Bb7 {[%clk 0:01:36]} 21. Bxg7 {[%clk 0:01:01]}  Kxg7 {[%clk 0:01:34]} 22. Qc3+ {[%clk 0:00:55]}  f6 {[%clk 0:01:34]} 23. Neg5 {[%clk 0:00:50]}  Nd5 {[%clk 0:01:21]} 24. Qb2 {[%clk 0:00:47]}  Re8 {[%clk 0:01:19]} 25. h4 {[%clk 0:00:06]}  Rxe1+ {[%clk 0:00:59]} 26. Nxe1 {[%clk 0:00:07]}  Nb4 {[%clk 0:00:58]} 27. a3 {[%clk 0:00:06]}  Qd5 {[%clk 0:00:49]} 28. f3 {[%clk 0:00:05]}  Nd3 {[%clk 0:00:46]} 29. Nxd3 {[%clk 0:00:05]}  Qxd3 {[%clk 0:00:47]} 30. Kf2 {[%clk 0:00:01]}  h6 {[%clk 0:00:45]} 31. Ne6+ {[%clk 0:00:00]}  Kf7 {[%clk 0:00:45]} 0-1


[Site "https://www.chess.com"]

[Event "Titled Tuesday Blitz July 18 Late 2023"]
[White "Makarian, Rudik"]
[Black "Leon Oquendo, Jorge"]
[WhiteFideId "44105681"]
[BlackFideId "3514803"]
[WhiteElo "2991"]
[BlackElo "2632"]
[Result "1-0"]
[Round "5"]
[TimeControl "180+2"]
[Date "2023.07.18"]
[WhiteClock "0:00:53"]
[BlackClock "0:00:07"]
[Board "17"]

1. Nf3 {[%clk 0:02:54]}  d5 {[%clk 0:02:48]} 2. c4 {[%clk 0:02:53]}  e6 {[%clk 0:02:47]} 3. g3 {[%clk 0:02:53]}  Nf6 {[%clk 0:02:47]} 4. Bg2 {[%clk 0:02:54]}  Be7 {[%clk 0:02:47]} 5. O-O {[%clk 0:02:55]}  O-O {[%clk 0:02:47]} 6. b3 {[%clk 0:02:55]}  b6 {[%clk 0:02:33]} 7. Bb2 {[%clk 0:02:53]}  Bb7 {[%clk 0:02:33]} 8. cxd5 {[%clk 0:02:48]}  Nxd5 {[%clk 0:02:31]} 9. Nc3 {[%clk 0:02:47]}  Bf6 {[%clk 0:02:27]} 10. Qc1 {[%clk 0:02:47]}  Nd7 {[%clk 0:02:23]} 11. Nxd5 {[%clk 0:02:47]}  Bxb2 {[%clk 0:02:12]} 12. Qxb2 {[%clk 0:02:48]}  Bxd5 {[%clk 0:02:11]} 13. b4 {[%clk 0:02:48]}  c5 {[%clk 0:02:10]} 14. bxc5 {[%clk 0:02:48]}  Nxc5 {[%clk 0:02:11]} 15. Rac1 {[%clk 0:02:36]}  Qd6 {[%clk 0:02:05]} 16. d3 {[%clk 0:02:35]}  Rac8 {[%clk 0:02:03]} 17. Qa3 {[%clk 0:02:30]}  Qd7 {[%clk 0:01:38]} 18. Ne5 {[%clk 0:02:26]}  Qa4 {[%clk 0:01:37]} 19. Qxa4 {[%clk 0:02:26]}  Nxa4 {[%clk 0:01:37]} 20. Bxd5 {[%clk 0:02:24]}  exd5 {[%clk 0:01:34]} 21. Nc6 {[%clk 0:02:24]}  Rc7 {[%clk 0:01:32]} 22. Nb4 {[%clk 0:02:21]}  Rfc8 {[%clk 0:01:26]} 23. Rxc7 {[%clk 0:02:21]}  Rxc7 {[%clk 0:01:27]} 24. Nxd5 {[%clk 0:02:19]}  Rc2 {[%clk 0:01:27]} 25. e4 {[%clk 0:02:20]}  Rxa2 {[%clk 0:01:26]} 26. Rc1 {[%clk 0:02:20]}  h6 {[%clk 0:01:21]} 27. Rc8+ {[%clk 0:02:18]}  Kh7 {[%clk 0:01:21]} 28. Rc7 {[%clk 0:02:19]}  Nc5 {[%clk 0:01:16]} 29. Rxf7 {[%clk 0:02:15]}  Nxd3 {[%clk 0:01:15]} 30. h4 {[%clk 0:02:11]}  b5 {[%clk 0:00:52]} 31. h5 {[%clk 0:02:10]}  Kg8 {[%clk 0:00:52]} 32. Rb7 {[%clk 0:01:49]}  Nxf2 {[%clk 0:00:52]} 33. e5 {[%clk 0:01:44]}  Nh3+ {[%clk 0:00:40]} 34. Kf1 {[%clk 0:01:41]}  Ng5 {[%clk 0:00:40]} 35. Rxb5 {[%clk 0:01:22]}  Kf7 {[%clk 0:00:40]} 36. Nf4 {[%clk 0:01:21]}  a5 {[%clk 0:00:36]} 37. Rb7+ {[%clk 0:01:18]}  Kf8 {[%clk 0:00:35]} 38. e6 {[%clk 0:01:17]}  Rd2 {[%clk 0:00:27]} 39. Ng6+ {[%clk 0:01:00]}  Ke8 {[%clk 0:00:26]} 40. e7 {[%clk 0:00:56]}  Kf7 {[%clk 0:00:07]} 41. Rb8 {[%clk 0:00:53]} 1-0


[Site "https://www.chess.com"]